bitfinex/quotes_ETHUSD_20250801
["timestamp","ask_amount","ask_price","bid_price","bid_amount"]
[1754061125983,0.1384,3622.9,3622.4,0.1384]
[1754061126862,1.1684,3622.9,3622.3,0.1384]
[1754061127065,4.46263792,3622.9,3622.2,7.22174977]
[1754061127265,0.1384,3622.6,3622.2,7.22174977]
[1754061127581,0.001,3623.0,3622.3,1.084]
[1754061127780,0.001,3623.0,3622.5,0.1384]
[1754061128177,0.001,3623.0,3622.2,7.22170942]
[1754061128178,0.001,3623.0,3622.7,0.1384]
[1754061128484,0.001,3623.0,3622.9,2.76021971]
[1754061129980,0.001,3623.0,3622.8,2.89867076]
[1754061130177,0.4392,3622.9,3622.8,0.1384]
[1754061130381,1.03,3622.9,3622.8,0.1384]
[1754061130581,0.001,3623.0,3622.9,2.76021971]
[1754061130753,0.001,3623.0,3622.9,3.05008168]
[1754061131284,0.001,3623.0,3622.7,2.76037209]
[1754061131445,1.1694,3623.0,3622.5,4.5984]
[1754061131639,1.1694,3623.0,3622.8,2.76024984]
[1754061131640,0.5786,3623.0,3622.8,2.76024984]
[1754061131873,0.5786,3623.0,3622.5,7.35884863]
[1754061132072,0.5786,3623.0,3622.6,2.76039532]
[1754061132367,0.001,3623.0,3622.9,2.76021971]
[1754061133609,1.031,3623.0,3622.2,4.46]
[1754061133814,3.79114697,3623.0,3622.4,2.76054671]
[1754061134112,1.031,3623.0,3622.5,2.76049595]
[1754061134340,1.03,3622.9,3622.4,2.76057415]
[1754061134544,0.001,3623.0,3621.8,0.4595]
[1754061134746,1.03,3622.8,3620.2,2.7622219]
[1754061135007,2.76088044,3622.1,3621.4,2.7613347]
[1754061135166,4.06450465,3622.7,3620.8,4.46]
[1754061135167,1.06451131,3622.0,3621.3,2.76142171]
[1754061135367,1.06451131,3622.0,3620.5,0.6245]
[1754061135368,2.76113427,3621.7,3620.3,2.76215093]
[1754061135581,1.52260856,3621.6,3619.6,7.2372]
[1754061135786,2.76170264,3621.0,3619.7,4.46]
[1754061135969,3.81337687,3621.2,3620.4,2.76212212]
[1754061136194,2.76159816,3621.1,3620.4,2.76212212]
[1754061136510,2.76192821,3620.7,3620.0,2.76237894]
[1754061136674,1.03042471,3621.1,3619.6,7.2372]
[1754061136875,2.76172109,3621.0,3620.3,2.76217897]
[1754061137100,2.76177552,3620.9,3619.6,5.0652]
[1754061137284,3.94449272,3620.9,3620.2,2.7622628]
[1754061137711,3.94449272,3620.9,3620.3,2.76220053]
[1754061137908,3.94444409,3620.9,3620.2,2.76225284]
[1754061138111,3.94444409,3620.9,3619.6,5.0652]
[1754061138112,1.18269002,3620.9,3620.3,2.7621854]
[1754061138309,2.76167315,3621.0,3620.4,2.7621131]
[1754061138617,2.76167315,3621.0,3620.3,2.76218849]
[1754061138843,3.79204004,3621.1,3620.4,2.76211277]
[1754061138979,2.76174762,3620.9,3620.1,2.76235463]
[1754061139184,3.79203346,3621.1,3620.4,2.76207376]
[1754061139417,2.76181653,3620.9,3620.0,3.36758827]
[1754061139579,4.1630399,3621.0,3620.3,2.76219587]
[1754061139774,0.0345218,3620.9,3619.9,2.76243809]
[1754061139973,0.0345218,3620.9,3616.1,1.33567963]
[1754061139974,1.6018,3620.8,3619.4,0.4641]
[1754061140217,4.0518,3620.7,3619.2,0.6052]
[1754061140421,2.76235695,3620.1,3619.2,0.6052]
[1754061140720,2.76235695,3620.1,3619.5,2.76281246]
[1754061140924,1.0518,3620.4,3619.2,0.6052]
[1754061141229,1.0518,3620.4,3619.8,2.76256905]
[1754061141376,2.7622079,3620.3,3619.6,2.76268064]
[1754061141573,3.81394871,3620.4,3619.7,2.7626512]
[1754061141810,2.529375,3620.4,3619.8,2.76257542]
[1754061142133,3.0,3620.6,3619.7,0.6052]
[1754061142336,2.76223884,3620.3,3619.7,2.76265925]
[1754061142626,2.76226799,3620.3,3619.7,2.76265518]
[1754061142781,2.76226799,3620.3,3619.6,2.76268251]
[1754061142982,0.1384,3619.9,3619.4,0.1384]
[1754061143409,0.1384,3619.7,3619.2,0.1384]
[1754061143628,3.0,3620.6,3619.0,0.6072]
[1754061143629,0.1384,3619.4,3619.0,3.37036313]
[1754061143783,0.1384,3619.4,3619.0,0.002]
[1754061144188,3.0,3620.0,3619.1,0.6052]
[1754061144492,0.1384,3619.5,3619.3,2.76294441]
[1754061144696,0.1384,3619.5,3619.0,0.1404]
[1754061144929,0.1384,3619.5,3619.0,0.7456]
[1754061145109,0.1384,3619.5,3619.3,2.76291091]
[1754061145311,0.1384,3619.5,3619.4,2.76288887]
[1754061145515,0.1384,3619.5,3619.2,2.76298616]
[1754061145718,3.85118,3620.0,3619.0,0.002]
[1754061145719,0.03453611,3619.4,3619.0,0.002]
[1754061145939,0.1384,3619.1,3619.0,0.002]
[1754061146100,0.1384,3619.1,3619.0,2.76519425]
[1754061146429,0.1384,3619.1,3619.0,0.002]
[1754061146579,0.1384,3619.1,3619.0,2.76519425]
[1754061146797,0.1384,3619.1,3619.0,0.002]
[1754061147299,0.5961,3619.1,3619.0,0.002]
[1754061147796,0.1384,3619.1,3619.0,0.002]
[1754061148927,3.9533179,3619.1,3619.0,0.002]
[1754061149113,2.03163179,3619.1,3619.0,0.002]
[1754061149321,0.1384,3619.1,3619.0,0.002]
[1754061150031,0.5961,3619.1,3619.0,0.002]
[1754061150329,3.3592179,3619.1,3619.0,0.002]
[1754061150565,7.5033179,3619.1,3619.0,0.002]
[1754061151701,11.9643179,3619.1,3619.0,0.002]
[1754061152029,13.4370526,3619.1,3619.0,0.002]
[1754061152534,14.22720708,3619.1,3619.0,0.002]
[1754061154229,13.17540708,3619.1,3619.0,0.002]
[1754061154438,14.22720708,3619.1,3619.0,0.002]
[1754061155420,9.76620708,3619.1,3619.0,0.002]
[1754061155636,14.22720708,3619.1,3619.0,0.002]
[1754061156017,8.57600708,3619.1,3619.0,0.002]
[1754061156221,13.17540708,3619.1,3619.0,0.002]
[1754061156441,3.92855448,3619.1,3619.0,0.002]
[1754061156817,8.38955448,3619.1,3619.0,0.002]
[1754061157018,12.20447238,3619.1,3619.0,0.002]
[1754061157220,12.75447238,3619.1,3619.0,0.002]
[1754061157634,11.70267238,3619.1,3619.0,0.002]
[1754061157813,13.14923631,3619.1,3619.0,0.002]
[1754061158129,8.38955448,3619.1,3619.0,0.002]
[1754061160571,5.38955448,3619.1,3619.0,3.83449425]
[1754061160714,0.92855448,3619.1,3619.0,3.83449425]
[1754061161019,0.79015448,3619.1,3619.0,3.83449425]
[1754061162450,0.1384,3620.3,3620.2,2.76227832]
[1754061162637,0.1384,3620.3,3620.2,3.83157832]
[1754061162837,0.1384,3620.3,3620.0,0.6052]
[1754061163151,0.1384,3620.1,3619.5,2.76281254]
[1754061163314,0.20509059,3620.1,3619.9,2.76250389]
[1754061163513,0.1384,3620.0,3619.5,0.6052]
[1754061163734,0.1384,3620.0,3619.1,0.4641]
[1754061163735,2.76259266,3619.8,3619.1,0.6052]
[1754061164062,2.76259266,3619.8,3619.0,0.002]
[1754061164063,0.1384,3619.3,3619.0,0.002]
[1754061164234,4.46,3619.3,3619.0,0.002]
[1754061164409,0.1384,3619.1,3619.0,0.002]
[1754061164610,4.46,3619.3,3619.1,0.4641]
[1754061164840,4.5984,3619.3,3619.0,2.76517963]
[1754061165173,0.1384,3619.3,3619.1,0.6052]
[1754061165672,0.1384,3619.3,3619.0,0.002]
[1754061165874,4.46,3619.4,3619.0,0.002]
[1754061166180,0.1384,3619.1,3619.0,0.002]
[1754061167237,4.46,3619.4,3619.1,2.76310321]
[1754061167435,0.1384,3619.2,3619.1,2.76310321]
[1754061167778,4.459,3619.6,3619.1,0.14496798]
[1754061167976,0.1384,3619.8,3619.7,2.76265988]
[1754061167977,4.5974,3619.8,3619.7,2.76265988]
[1754061168134,4.5974,3619.8,3619.3,0.1384]
[1754061168336,4.459,3619.8,3619.3,2.76295969]
[1754061168659,0.1384,3619.5,3619.3,2.76295969]
[1754061168863,0.1384,3619.5,3619.4,3.35328887]
[1754061169039,0.1384,3619.5,3619.4,3.78928887]
[1754061169238,0.1384,3619.6,3619.5,2.76281254]
[1754061169738,0.1384,3619.6,3619.4,1.0264]
[1754061169937,0.1384,3619.6,3619.4,2.76286738]
[1754061170176,0.1384,3619.6,3619.3,2.76295465]
[1754061170353,0.1384,3619.6,3619.4,0.5904]
[1754061170676,0.1384,3619.6,3619.5,2.76281254]
[1754061170975,0.1384,3619.6,3619.2,2.76304155]
[1754061171176,0.1384,3619.6,3619.3,2.76296036]
[1754061171578,4.459,3619.8,3619.0,0.002]
[1754061171737,0.1384,3619.3,3619.2,2.76304155]
[1754061172180,0.1384,3619.3,3619.2,3.35344155]
[1754061172375,0.1384,3619.3,3619.2,0.5904]
[1754061172683,6.3131179,3619.1,3619.0,0.002]
[1754061172844,6.3131179,3619.1,3616.6,2.76700222]
[1754061172845,0.55,3618.5,3617.1,3.35503706]
[1754061173039,2.76395525,3618.1,3617.4,2.76439719]
[1754061173273,0.1384,3617.5,3617.4,2.76439719]
[1754061173472,4.5964,3617.5,3617.0,0.1384]
[1754061173674,4.5964,3617.5,3616.6,0.5924]
[1754061173675,0.1384,3617.1,3616.6,0.002]
[1754061173909,0.1384,3616.7,3616.6,0.002]
[1754061174085,0.1384,3616.7,3616.6,0.5924]
[1754061174284,0.1384,3616.7,3616.6,3.35742792]
[1754061174485,0.1384,3616.7,3616.6,3.79342792]
[1754061174693,4.5964,3617.0,3616.9,2.76479858]
[1754061174885,0.1384,3617.0,3616.9,3.35519858]
[1754061175084,4.458,3617.2,3617.1,2.76464571]
[1754061175406,3.0,3618.0,3617.1,3.79104571]
[1754061175613,0.1384,3617.5,3617.2,2.76456928]
[1754061175776,0.1384,3617.5,3617.4,2.76441643]
[1754061176169,4.458,3617.9,3617.4,1.0264]
[1754061176415,4.458,3617.9,3617.8,2.76411078]
[1754061176615,4.458,3617.9,3617.8,3.35451078]
[1754061177172,4.458,3617.9,3617.8,3.79051078]
[1754061177373,0.1384,3618.1,3618.0,2.76395798]
[1754061178205,0.1384,3618.1,3618.0,3.79035798]
[1754061178511,0.1384,3618.1,3618.0,3.35435798]
[1754061178715,0.1384,3618.1,3618.0,2.76395798]
[1754061179020,3.0,3618.6,3618.1,2.76385619]
[1754061179308,0.1384,3618.1,3618.0,2.76395798]
[1754061180323,4.458,3618.3,3618.0,1.0264]
[1754061180607,0.1384,3618.4,3618.3,2.76372882]
[1754061180825,4.458,3619.1,3618.4,2.76365244]
[1754061181028,4.458,3619.1,3619.0,2.76319425]
[1754061181242,4.458,3619.1,3618.2,0.5904]
[1754061181401,0.1384,3618.9,3618.2,2.90218513]
[1754061181591,0.1384,3618.7,3618.6,2.76349969]
[1754061181790,0.1384,3618.7,3618.6,3.35389969]
[1754061182137,4.458,3619.1,3618.6,3.78983983]
[1754061182423,4.458,3619.1,3619.0,2.76319425]
[1754061182625,0.1384,3619.0,3618.5,0.1384]
[1754061182844,1.25724088,3618.9,3618.5,2.7635703]
[1754061182992,0.1384,3618.6,3618.3,2.76371435]
[1754061183195,1.0843,3618.9,3618.4,2.76364777]
[1754061183397,0.4743,3618.9,3618.4,2.76364777]
[1754061183602,5.76322315,3619.0,3618.0,0.436]
[1754061183603,3.0,3619.0,3618.0,0.436]
[1754061183834,0.1384,3618.4,3618.3,2.76367324]
[1754061184336,0.1384,3618.4,3617.9,2.90237826]
[1754061184508,0.03454661,3618.3,3617.9,0.1384]
[1754061184707,0.1384,3618.4,3617.9,0.1384]
[1754061184708,0.1384,3618.4,3618.0,0.5904]
[1754061184940,0.1384,3618.4,3618.1,0.5904]
[1754061185097,0.1384,3618.3,3618.1,0.5904]
[1754061185294,0.1384,3618.3,3618.1,3.35427521]
[1754061185625,0.1384,3618.3,3617.7,0.1384]
[1754061185626,0.1384,3618.3,3618.0,2.76394477]
[1754061185934,0.1384,3618.3,3618.1,2.76387572]
[1754061186296,0.1384,3618.3,3617.7,0.1384]
[1754061186495,0.1384,3618.1,3617.4,0.1384]
[1754061186709,0.1384,3618.1,3616.5,3.35550036]
[1754061186710,0.1384,3617.5,3616.5,3.35550036]
[1754061186925,0.1384,3617.0,3616.5,0.7288]
[1754061187123,2.76495147,3616.7,3615.8,0.1384]
[1754061187324,8.08254662,3616.7,3616.0,2.7654328]
[1754061187600,4.5954,3616.7,3616.0,0.5904]
[1754061187798,4.5954,3616.7,3616.4,2.76516837]
[1754061188001,4.458,3617.1,3616.9,2.76473728]
[1754061188290,4.5964,3617.1,3616.9,3.35517246]
[1754061188498,4.457,3617.2,3617.1,2.76458913]
[1754061188642,4.5954,3617.2,3617.1,2.76458913]
[1754061188847,3.31388024,3618.2,3617.3,2.76449285]
[1754061188848,4.457,3617.4,3617.3,2.76449285]
[1754061189066,4.5954,3617.6,3617.3,3.35489285]
[1754061189269,4.457,3617.6,3617.5,2.76434001]
[1754061189585,4.457,3617.6,3617.5,3.35474001]
[1754061189747,0.1384,3617.7,3617.6,2.7642636]
[1754061189949,4.457,3618.0,3617.9,2.76403438]
[1754061190151,4.457,3618.0,3617.9,3.35443438]
[1754061190454,0.1384,3618.2,3618.1,2.76388159]
[1754061190648,0.1384,3618.2,3618.1,2.77046866]
[1754061190876,0.1384,3618.2,3617.6,0.1384]
[1754061191047,0.1384,3618.1,3617.5,5.6218]
[1754061191265,0.1384,3618.1,3617.5,1.1648]
[1754061191571,4.457,3618.3,3617.6,0.436]
[1754061191769,0.1384,3618.2,3617.7,0.1384]
[1754061191948,0.1384,3618.2,3618.0,2.76395358]
[1754061192153,0.1384,3618.2,3618.0,3.35435358]
[1754061192348,6.64,3618.8,3617.8,0.436]
[1754061192349,6.64,3618.8,3618.1,3.79028159]
[1754061192551,0.1384,3618.6,3618.5,2.76355911]
[1754061192750,2.89983824,3620.5,3618.6,3.78989969]
[1754061192751,4.457,3619.0,3618.6,3.78989969]
[1754061193066,4.5954,3619.0,3618.8,2.76334374]
[1754061193286,7.5954,3619.0,3618.9,2.7632706]
[1754061193481,7.5954,3619.0,3618.8,2.76333378]
[1754061193685,7.5954,3619.0,3618.4,0.1384]
[1754061193990,0.1384,3618.7,3618.2,3.35420186]
[1754061194289,0.1384,3618.7,3618.5,2.76351627]
[1754061194584,4.5954,3619.0,3618.4,2.90202738]
[1754061194802,0.1384,3618.8,3618.7,2.76341879]
[1754061194956,0.1384,3618.8,3618.6,2.76344806]
[1754061195150,0.1384,3618.8,3618.5,2.76355584]
[1754061195372,0.03454088,3618.9,3618.2,2.76375114]
[1754061195574,2.76362074,3618.5,3617.8,3.35446159]
[1754061195777,0.1384,3618.0,3617.8,2.76405254]
[1754061195987,0.1384,3618.0,3617.7,2.76416953]
[1754061196157,0.50064565,3618.4,3617.9,2.76397071]
[1754061196158,4.456,3618.3,3617.9,2.76397071]
[1754061196357,4.456,3618.3,3617.4,4.456]
[1754061196358,4.456,3618.3,3617.8,2.76408893]
[1754061196555,4.456,3618.3,3617.9,2.76398378]
[1754061196755,4.456,3618.3,3617.9,3.38860811]
[1754061196958,4.9221,3618.3,3617.8,2.76409269]
[1754061197159,0.1384,3618.0,3617.9,2.76403438]
[1754061197404,0.1384,3618.0,3617.7,2.76417933]
[1754061197560,0.1384,3618.0,3617.9,2.76403438]
[1754061197959,5.76335866,3618.8,3618.2,2.76378534]
[1754061198169,3.0,3618.8,3618.3,2.76372823]
[1754061198381,3.0,3618.8,3617.9,0.4471]
[1754061198555,2.76357214,3618.6,3617.9,2.76401049]
[1754061198872,2.76357214,3618.6,3618.0,2.76390561]
[1754061198873,3.0,3618.6,3618.0,2.76390561]
[1754061199055,2.76362088,3618.5,3617.9,2.76402225]
[1754061199255,2.7634303,3618.7,3617.7,0.6246]
[1754061199256,4.456,3618.4,3618.0,2.76395056]
[1754061199573,4.456,3618.4,3618.0,2.76394083]
[1754061200257,4.456,3618.4,3617.8,2.76409576]
[1754061200458,7.21966245,3618.4,3617.7,2.76416223]
[1754061200658,4.456,3618.4,3617.4,0.4471]
[1754061200893,4.456,3618.4,3617.9,2.76398551]
[1754061201088,4.456,3618.4,3617.9,2.76396991]
[1754061201455,3.88692711,3618.3,3617.7,2.76417574]
[1754061201706,1.0886,3618.3,3617.8,2.76406562]
[1754061201904,0.4661,3618.2,3617.4,2.76435246]
[1754061202202,1.0886,3618.2,3617.0,0.6246]
[1754061202403,1.0886,3618.2,3617.7,2.76417602]
[1754061202678,1.0886,3618.2,3617.7,2.76416283]
[1754061202855,3.88703339,3618.1,3616.9,0.002]
[1754061203066,4.455,3618.0,3617.8,2.7640724]
[1754061203293,3.0,3618.5,3617.9,1.0717]
[1754061203594,4.455,3618.3,3618.0,2.76394904]
[1754061203779,4.455,3618.3,3617.9,0.6246]
[1754061203984,4.455,3618.3,3617.6,2.76425199]
[1754061203985,4.455,3618.3,3617.8,2.76409608]
[1754061204290,2.76398112,3618.0,3617.4,2.76440069]
[1754061204489,4.455,3617.9,3617.7,2.76413971]
[1754061204695,4.455,3617.8,3617.7,2.76413971]
[1754061204893,3.0,3618.5,3617.7,3.38876635]
[1754061205059,3.0,3618.3,3617.9,2.76399619]
[1754061205259,7.16,3618.6,3618.1,2.76382319]
[1754061205454,7.16,3618.6,3617.2,2.7645638]
[1754061205455,7.16,3618.6,3618.2,1.0717]
[1754061205679,7.16,3618.6,3618.3,2.76366501]
[1754061205959,4.455,3618.7,3618.4,0.6246]
[1754061206157,4.454,3618.7,3618.6,2.76349781]
[1754061206394,7.16,3619.5,3618.6,1.0717]
[1754061206566,0.001,3619.7,3619.3,2.76290412]
[1754061206785,4.455,3619.7,3619.1,2.76308662]
[1754061206992,4.455,3619.7,3618.7,0.6246]
[1754061206993,2.76298073,3619.3,3618.7,0.6246]
[1754061207180,4.454,3619.3,3618.7,2.76340848]
[1754061207380,4.454,3619.3,3618.4,0.6246]
[1754061207716,0.03453801,3619.2,3618.2,0.4471]
[1754061207919,4.9201,3619.3,3617.0,3.31468322]
[1754061207920,0.1384,3618.5,3618.4,2.76365244]
[1754061208687,0.1384,3618.5,3618.1,0.6246]
[1754061209002,0.1384,3618.5,3618.0,0.1384]
[1754061209403,0.1384,3618.5,3618.0,0.763]
[1754061209570,0.1384,3618.5,3618.0,2.90234105]
[1754061209772,0.1384,3618.5,3618.3,2.76367853]
[1754061209978,0.1384,3618.5,3617.9,0.1384]
[1754061210277,0.1384,3618.5,3618.4,2.76365244]
[1754061211195,0.1384,3618.5,3617.8,0.1384]
[1754061211508,0.1384,3618.3,3618.1,2.76387601]
[1754061211807,4.40630394,3618.7,3618.1,2.76387601]
[1754061212011,1.64286,3618.7,3618.2,2.76379874]
[1754061212320,8.80286,3618.7,3618.2,2.76379874]
[1754061212474,0.1384,3618.3,3618.2,2.76379874]
[1754061212873,0.1384,3618.3,3617.7,0.6246]
[1754061213107,8.80286,3618.7,3618.2,2.76379898]
[1754061213474,7.16,3618.7,3618.4,2.76362387]
[1754061213698,7.16,3618.7,3618.3,2.76372882]
[1754061213917,0.1384,3618.5,3618.4,2.76362899]
[1754061214126,7.16,3618.7,3618.6,2.76349969]
[1754061214320,7.2984,3618.7,3618.6,2.76349969]
[1754061214524,7.2984,3618.7,3618.6,3.38809969]
[1754061215300,7.2984,3618.7,3618.6,3.83519969]
[1754061215741,7.2984,3618.7,3618.6,3.38809969]
[1754061216032,7.2984,3618.7,3618.6,2.76349969]
[1754061216185,0.1384,3618.7,3618.2,0.763]
[1754061216386,0.1384,3618.7,3618.6,2.76349969]
[1754061216803,0.1384,3618.7,3617.9,0.4471]
[1754061217003,0.4661,3618.9,3618.5,2.7635142]
[1754061217239,0.1384,3618.7,3618.6,2.76345002]
[1754061217519,0.1384,3618.7,3618.3,2.76367919]
[1754061217732,0.1384,3618.5,3618.2,2.76373874]
[1754061217896,0.1384,3618.5,3618.3,2.76369873]
[1754061218083,0.1384,3618.5,3618.1,2.76386385]
[1754061218312,0.1384,3618.5,3617.9,0.1384]
[1754061218513,0.1384,3618.5,3618.4,2.76365244]
[1754061218755,0.1384,3618.5,3617.9,0.6599]
[1754061218756,0.1384,3618.5,3618.0,2.76395798]
[1754061218970,0.50064565,3618.4,3617.4,0.6266]
[1754061219141,0.1384,3618.0,3617.4,0.002]
[1754061219314,0.1384,3617.5,3617.4,0.002]
[1754061219522,7.35474001,3617.5,3617.4,0.002]
[1754061219726,5.679,3617.5,3617.4,0.002]
[1754061219967,5.0565,3617.5,3617.4,0.002]
[1754061220166,7.35474001,3617.5,3617.4,0.002]
[1754061220328,9.46281916,3617.5,3617.4,0.002]
[1754061220664,13.01281916,3617.5,3617.4,0.002]
[1754061221370,14.67181916,3617.5,3617.4,0.002]
[1754061221575,13.01281916,3617.5,3617.4,0.002]
[1754061222062,13.21815128,3617.5,3617.4,0.002]
[1754061222427,20.37815128,3617.5,3617.4,0.002]
[1754061222626,20.17281916,3617.5,3617.4,0.002]
[1754061223477,19.08421916,3617.5,3617.4,0.002]
[1754061223769,10.2984,3617.5,3617.4,0.002]
[1754061223950,14.7504,3617.5,3617.4,0.002]
[1754061224565,17.51474001,3617.5,3617.4,0.002]
[1754061224771,14.7504,3617.5,3617.4,0.002]
[1754061225252,7.5904,3617.5,3617.4,0.002]
[1754061225569,0.1384,3617.5,3617.4,0.9947]
[1754061225734,0.1384,3617.9,3617.4,0.9947]
[1754061225936,4.452,3617.8,3617.5,0.9927]
[1754061226130,4.452,3617.7,3617.6,3.32305034]
[1754061226328,4.452,3617.7,3617.6,3.3230636]
[1754061226731,4.452,3617.7,3617.6,0.5588]
[1754061227033,4.452,3617.7,3617.4,0.002]
[1754061227233,0.03455329,3617.6,3617.4,0.002]
[1754061227533,0.1384,3617.5,3617.4,0.002]
[1754061228464,3.91884001,3617.5,3617.4,0.002]
[1754061229158,0.1384,3617.5,3617.4,0.002]
[1754061229361,4.5894,3617.5,3617.4,0.002]
[1754061229568,7.38829426,3617.5,3617.4,0.002]
[1754061229769,7.35374001,3617.5,3617.4,0.002]
[1754061229979,7.36032943,3617.5,3617.4,0.002]
[1754061230171,6.34422943,3617.5,3617.4,0.002]
[1754061230368,0.1384,3617.5,3617.4,0.002]
[1754061230570,4.5894,3617.5,3617.4,0.002]
[1754061230949,11.91984001,3617.5,3617.4,0.002]
[1754061231486,10.79724001,3617.5,3617.4,0.002]
[1754061231655,10.35374001,3617.5,3617.4,0.002]
[1754061232067,7.5894,3617.5,3617.4,0.002]
[1754061232270,3.1384,3617.5,3617.4,0.002]
[1754061232587,0.1384,3617.5,3617.4,3.75911643]
[1754061232887,4.451,3618.7,3617.4,0.9947]
[1754061233064,4.451,3618.7,3617.6,2.7642636]
[1754061233454,1.24199391,3619.6,3618.8,2.76330318]
[1754061233657,0.1384,3618.9,3618.3,0.1384]
[1754061233860,4.451,3618.8,3618.4,0.5588]
[1754061234058,4.451,3618.8,3618.7,2.76342332]
[1754061234262,1.24199391,3619.6,3619.0,2.76314965]
[1754061234458,1.24199391,3619.6,3618.8,0.5588]
[1754061234692,4.451,3619.3,3619.2,2.76304155]
[1754061235171,4.451,3619.3,3619.2,3.75574155]
[1754061235575,4.451,3619.3,3618.9,0.1384]
[1754061235888,0.1384,3619.1,3618.4,0.5588]
[1754061236083,4.451,3619.0,3618.4,0.6972]
[1754061236388,4.451,3619.0,3618.7,2.76341655]
[1754061236685,4.451,3619.0,3618.4,0.6972]
[1754061236892,0.1384,3618.6,3618.4,2.76362884]
[1754061237187,0.1384,3618.6,3618.5,2.76357606]
[1754061237385,0.1384,3618.6,3618.3,2.76367524]
[1754061237684,0.1384,3618.6,3618.2,0.9927]
[1754061237864,0.1384,3618.6,3618.2,2.76377803]
[1754061238062,4.45,3618.7,3618.1,2.76386086]
[1754061238371,0.1384,3618.2,3618.1,2.76382048]
[1754061238577,0.1384,3618.2,3617.8,2.76409034]
[1754061238775,0.1384,3618.2,3617.9,2.76401793]
[1754061238957,0.1384,3618.2,3617.8,2.76409671]
[1754061239285,0.1384,3618.2,3618.0,2.76395753]
[1754061239487,0.1384,3618.2,3617.9,0.5588]
[1754061239788,4.449,3618.3,3617.5,2.76434001]
[1754061239789,2.79843985,3618.1,3617.5,2.76434001]
[1754061239978,0.551,3619.0,3617.4,0.002]
[1754061239979,0.1384,3617.7,3617.4,0.002]
[1754061240179,0.1384,3617.5,3617.4,0.002]
[1754061240558,4.449,3617.7,3617.6,2.7642636]
[1754061240893,0.1384,3618.2,3618.1,2.76388159]
[1754061241059,4.449,3618.4,3618.3,2.76372882]
[1754061241381,0.1384,3618.2,3617.9,0.5588]
[1754061241582,4.449,3618.4,3618.0,0.9927]
[1754061241763,4.449,3618.4,3617.4,0.002]
[1754061241764,0.1384,3618.0,3617.4,0.002]
[1754061241963,0.1384,3617.5,3617.4,0.002]
[1754061242191,4.5864,3617.5,3617.4,0.002]
[1754061242371,7.81283524,3617.5,3617.4,0.002]
[1754061242567,8.82893524,3617.5,3617.4,0.002]
[1754061243395,7.81283524,3617.5,3617.4,0.002]
[1754061243578,8.25633524,3617.5,3617.4,0.002]
[1754061243779,5.04849523,3617.5,3617.4,0.002]
[1754061244188,0.1384,3617.5,3617.4,0.002]
[1754061244360,4.62095425,3617.5,3617.4,0.002]
[1754061244695,7.38529426,3617.5,3617.4,0.002]
[1754061244892,8.91684001,3617.5,3617.4,0.002]
[1754061245994,4.5864,3617.5,3617.4,0.002]
[1754061246163,7.38529426,3617.5,3617.4,0.002]
[1754061246364,4.5864,3617.5,3617.4,0.002]
[1754061248093,0.1384,3617.5,3617.4,0.5608]
[1754061248328,4.5864,3617.5,3617.4,0.5608]
[1754061248493,7.35074001,3617.5,3617.4,0.002]
[1754061249401,9.37833927,3617.5,3617.4,0.002]
[1754061249696,5.59789926,3617.5,3617.4,0.002]
[1754061249900,8.36223927,3617.5,3617.4,0.002]
[1754061250398,5.59789926,3617.5,3617.4,0.002]
[1754061250594,4.5864,3617.5,3617.4,0.002]
[1754061250999,0.1384,3617.5,3617.4,0.002]
[1754061251198,0.1384,3617.5,3617.4,3.75911643]
[1754061251400,4.448,3617.6,3617.5,2.76434001]
[1754061251606,4.5864,3617.6,3617.5,0.5588]
[1754061251803,4.5864,3617.6,3617.5,3.75704001]
[1754061252306,0.1384,3617.6,3617.5,3.75704001]
[1754061252507,4.448,3617.7,3617.6,2.7642636]
[1754061252667,4.448,3617.7,3617.6,3.7569636]
[1754061253274,1.21589415,3618.2,3617.6,3.7569636]
[1754061253275,1.21589415,3618.2,3618.1,2.76388159]
[1754061253509,5.66289415,3618.2,3618.1,0.5588]
[1754061253811,5.80129415,3618.2,3618.1,0.5588]
[1754061253986,5.66289415,3618.2,3618.1,3.75658159]
[1754061254181,5.66289415,3618.2,3617.8,2.90250447]
[1754061254389,5.66289415,3618.2,3617.9,2.76402641]
[1754061254587,0.1384,3618.1,3617.9,2.76402641]
[1754061254896,0.1384,3618.1,3617.8,2.76405105]
[1754061255097,0.1384,3617.9,3617.8,3.32285105]
[1754061255304,0.1384,3617.9,3617.4,0.6992]
[1754061255611,5.66289415,3618.2,3618.1,2.76388159]
[1754061255854,1.21589415,3618.2,3618.1,4.05766975]
[1754061256107,1.21589415,3618.2,3618.1,4.19606975]
[1754061256410,4.448,3619.4,3618.9,2.7632706]
[1754061256876,4.448,3619.4,3618.9,3.3420706]
[1754061257416,0.03453706,3619.3,3618.5,0.5788]
[1754061257587,4.91,3619.4,3618.5,0.5788]
[1754061257776,5.0046,3618.9,3617.8,1.0174]
[1754061258106,4.446,3618.9,3618.5,2.76352726]
[1754061258406,4.446,3618.9,3618.6,2.76348548]
[1754061258614,0.001,3619.4,3618.9,2.7632706]
[1754061258924,4.447,3619.0,3618.8,2.76333984]
[1754061259126,4.447,3619.0,3618.9,2.7632706]
[1754061259294,4.447,3619.0,3618.9,3.3420706]
[1754061259488,4.447,3619.0,3618.9,0.5788]
[1754061259688,0.001,3619.0,3618.9,0.5788]
[1754061259893,0.001,3619.0,3618.9,3.3420706]
[1754061260423,0.001,3619.0,3618.8,2.76328021]
[1754061260592,0.001,3619.0,3618.6,2.76345719]
[1754061260917,0.001,3619.0,3618.5,2.76354598]
[1754061261104,2.7642122,3619.0,3618.3,2.76366801]
[1754061261408,2.7642122,3619.0,3618.8,2.76329395]